[Event "*** Titled Tuesday Blitz"]
[Site "Chess.com"]
[Date "2020.01.07"]
[Round "1"]
[White "earling8018"]
[Black "Mostii"]
[Result "0-1"]
[WhiteElo "2061"]
[BlackElo "2532"]
[TimeControl "180+2"]
[EndTime "13:10:25 PST"]
[Termination "Mostii won on time"]

1. c4 {[%clk 0:03:01.2]} 1... b6 {[%clk 0:02:55]} 2. d4 {[%clk 0:03:00.2]} 2...
e6 {[%clk 0:02:52.4]} 3. Nf3 {[%clk 0:02:58.1]} 3... Bb7 {[%clk 0:02:53]} 4. g3
{[%clk 0:02:57.6]} 4... Nf6 {[%clk 0:02:52.8]} 5. Bg2 {[%clk 0:02:58.5]} 5...
Bb4+ {[%clk 0:02:54.2]} 6. Bd2 {[%clk 0:02:58.6]} 6... Bxd2+ {[%clk 0:02:54.6]}
7. Qxd2 {[%clk 0:02:59.3]} 7... O-O {[%clk 0:02:54.4]} 8. O-O {[%clk 0:02:59]}
8... Ne4 {[%clk 0:02:50.7]} 9. Qc2 {[%clk 0:02:59.1]} 9... f5 {[%clk 0:02:50.2]}
10. Nfd2 {[%clk 0:02:54.3]} 10... d5 {[%clk 0:02:51]} 11. Nf3 {[%clk 0:02:35.1]}
11... Nd7 {[%clk 0:02:49.6]} 12. Nbd2 {[%clk 0:02:33.4]} 12... c5 {[%clk
0:02:45.1]} 13. Rac1 {[%clk 0:02:27.3]} 13... Rc8 {[%clk 0:02:43.1]} 14. dxc5
{[%clk 0:02:15.2]} 14... Ndxc5 {[%clk 0:02:40]} 15. Rfd1 {[%clk 0:02:10.9]}
15... Qf6 {[%clk 0:02:34.6]} 16. Qb1 {[%clk 0:02:07.8]} 16... Rfd8 {[%clk
0:01:57.2]} 17. cxd5 {[%clk 0:02:05.5]} 17... Bxd5 {[%clk 0:01:59.1]} 18. Nc4
{[%clk 0:01:47.4]} 18... Bxc4 {[%clk 0:01:40.4]} 19. Rxd8+ {[%clk 0:01:40.7]}
19... Rxd8 {[%clk 0:01:42.3]} 20. Rxc4 {[%clk 0:01:41.4]} 20... h6 {[%clk
0:01:33.9]} 21. h4 {[%clk 0:01:40]} 21... g5 {[%clk 0:01:30.8]} 22. b4 {[%clk
0:01:33.6]} 22... Na4 {[%clk 0:01:28.2]} 23. Qb3 {[%clk 0:01:28.1]} 23... Nac3
{[%clk 0:01:26.4]} 24. e3 {[%clk 0:01:24]} 24... Rd1+ {[%clk 0:01:23.1]} 25. Kh2
{[%clk 0:01:21.9]} 25... g4 {[%clk 0:01:11.8]} 26. Nd4 {[%clk 0:01:21.1]} 26...
Rb1 {[%clk 0:00:35]} 27. Rc8+ {[%clk 0:01:21.7]} 27... Kg7 {[%clk 0:00:32.6]}
28. Qxe6 {[%clk 0:01:10.3]} 28... Qxe6 {[%clk 0:00:29.1]} 29. Nxe6+ {[%clk
0:01:11.2]} 29... Kf6 {[%clk 0:00:29.8]} 30. Nf4 {[%clk 0:01:11]} 30... Nxa2
{[%clk 0:00:21.6]} 31. Rc6+ {[%clk 0:01:05.8]} 31... Kg7 {[%clk 0:00:21.1]} 32.
Ne6+ {[%clk 0:00:37.7]} 32... Kf7 {[%clk 0:00:20.2]} 33. Nd4 {[%clk 0:00:38.3]}
33... Nxb4 {[%clk 0:00:20.2]} 34. Rxh6 {[%clk 0:00:39.2]} 34... Nxf2 {[%clk
0:00:19.3]} 35. Nxf5 {[%clk 0:00:34.3]} 35... Nbd3 {[%clk 0:00:17.6]} 36. Bd5+
{[%clk 0:00:34.6]} 36... Ke8 {[%clk 0:00:17.7]} 37. Rh7 {[%clk 0:00:31.7]} 37...
Rb2 {[%clk 0:00:17.4]} 38. Nd6+ {[%clk 0:00:12.5]} 38... Kd8 {[%clk 0:00:13.7]}
39. Be6 {[%clk 0:00:07.7]} 39... Ne4+ {[%clk 0:00:12.6]} 40. Kg1 {[%clk
0:00:08.6]} 40... Rb1+ {[%clk 0:00:13.1]} 41. Kg2 {[%clk 0:00:08.3]} 41... Rb2+
{[%clk 0:00:14.5]} 42. Kg1 {[%clk 0:00:09.3]} 42... Rb1+ {[%clk 0:00:15.9]} 43.
Kg2 {[%clk 0:00:10.6]} 43... Ne1+ {[%clk 0:00:17.3]} 44. Kf1 {[%clk 0:00:10.4]}
44... Nf3+ {[%clk 0:00:17.8]} 45. Ke2 {[%clk 0:00:09.3]} 45... Rb2+ {[%clk
0:00:19]} 46. Kd1 {[%clk 0:00:07]} 46... Rd2+ {[%clk 0:00:19.7]} 47. Kc1 {[%clk
0:00:08.3]} 47... Rxd6 {[%clk 0:00:21.6]} 48. Bf5 {[%clk 0:00:07.2]} 48... Nf2
{[%clk 0:00:20.8]} 49. Rxa7 {[%clk 0:00:05.1]} 49... Rd1+ {[%clk 0:00:21.6]} 50.
Kb2 {[%clk 0:00:02.9]} 50... Rd5 {[%clk 0:00:22.9]} 51. e4 {[%clk 0:00:02.9]}
51... Re5 {[%clk 0:00:22.5]} 52. h5 {[%clk 0:00:03.2]} 52... Nxe4 {[%clk
0:00:22.9]} 53. Bxe4 {[%clk 0:00:02.5]} 53... Rxe4 {[%clk 0:00:24.8]} 54. h6
{[%clk 0:00:04.1]} 54... Ng5 {[%clk 0:00:17.8]} 55. h7 {[%clk 0:00:05.3]} 55...
Nxh7 {[%clk 0:00:18.5]} 56. Rxh7 {[%clk 0:00:06.6]} 56... Re3 {[%clk 0:00:20]}
57. Rb7 {[%clk 0:00:05.7]} 57... Rxg3 {[%clk 0:00:20.9]} 58. Rxb6 {[%clk
0:00:06.7]} 58... Ke7 {[%clk 0:00:22.4]} 59. Kc2 {[%clk 0:00:07.7]} 59... Kf7
{[%clk 0:00:19.4]} 60. Kd2 {[%clk 0:00:08.6]} 60... Rf3 {[%clk 0:00:20.8]} 61.
Ke2 {[%clk 0:00:08.4]} 61... Rf4 {[%clk 0:00:21.5]} 62. Ke3 {[%clk 0:00:06.8]}
62... Ra4 {[%clk 0:00:22.4]} 0-1

[Event "*** Titled Tuesday Blitz"]
[Site "Chess.com"]
[Date "2020.01.07"]
[Round "1"]
[White "Justmig"]
[Black "Elyon2000"]
[Result "1-0"]
[WhiteElo "2701"]
[BlackElo "2348"]
[TimeControl "180+2"]
[EndTime "13:10:26 PST"]
[Termination "Justmig won by resignation"]

1. d4 {[%clk 0:03:01.6]} 1... Nf6 {[%clk 0:03:00.1]} 2. Bg5 {[%clk 0:03:01.7]}
2... d5 {[%clk 0:03:00.4]} 3. Nd2 {[%clk 0:03:00.3]} 3... c5 {[%clk 0:03:00.1]}
4. e3 {[%clk 0:03:01]} 4... Qb6 {[%clk 0:02:58]} 5. dxc5 {[%clk 0:02:54.3]} 5...
Qxb2 {[%clk 0:02:55]} 6. Ngf3 {[%clk 0:02:53.8]} 6... Nc6 {[%clk 0:02:50.8]} 7.
Rb1 {[%clk 0:02:48.9]} 7... Qc3 {[%clk 0:02:51.8]} 8. Bxf6 {[%clk 0:02:40.6]}
8... gxf6 {[%clk 0:02:52.5]} 9. Bb5 {[%clk 0:02:40.9]} 9... e6 {[%clk
0:02:47.2]} 10. O-O {[%clk 0:02:41.2]} 10... Qxc5 {[%clk 0:02:48.1]} 11. c4
{[%clk 0:02:41.4]} 11... a6 {[%clk 0:02:40.5]} 12. Nb3 {[%clk 0:02:30.6]} 12...
Qd6 {[%clk 0:02:35.9]} 13. cxd5 {[%clk 0:02:25.1]} 13... axb5 {[%clk 0:02:31.5]}
14. dxc6 {[%clk 0:02:26.4]} 14... Qxd1 {[%clk 0:02:32.4]} 15. Rfxd1 {[%clk
0:02:25.9]} 15... bxc6 {[%clk 0:02:34]} 16. Nfd4 {[%clk 0:02:26.7]} 16... Bd7
{[%clk 0:02:35.2]} 17. Rdc1 {[%clk 0:02:23]} 17... Ba3 {[%clk 0:02:30.8]} 18.
Rc3 {[%clk 0:02:21.8]} 18... Ra6 {[%clk 0:02:21.8]} 19. g3 {[%clk 0:02:17.9]}
19... Ke7 {[%clk 0:02:21.7]} 20. Nc5 {[%clk 0:02:15.2]} 20... Bxc5 {[%clk
0:02:21.8]} 21. Rxc5 {[%clk 0:02:17.1]} 21... Rxa2 {[%clk 0:02:21.9]} 22. Nxc6+
{[%clk 0:02:16.6]} 22... Bxc6 {[%clk 0:02:23.8]} 23. Rxc6 {[%clk 0:02:17.2]}
23... Rb8 {[%clk 0:02:24.9]} 24. Rc7+ {[%clk 0:02:18.4]} 24... Kf8 {[%clk
0:02:25.4]} 25. Rd1 {[%clk 0:02:19.2]} 25... b4 {[%clk 0:01:32.6]} 26. Rdd7
{[%clk 0:02:18.9]} 26... b3 {[%clk 0:01:34.3]} 27. Rxf7+ {[%clk 0:02:19.8]}
27... Kg8 {[%clk 0:01:16.8]} 28. Rg7+ {[%clk 0:02:20.4]} 28... Kf8 {[%clk
0:01:18.7]} 29. Rxh7 {[%clk 0:02:21.4]} 29... Kg8 {[%clk 0:01:20.6]} 30. Rcg7+
{[%clk 0:02:01.5]} 30... Kf8 {[%clk 0:01:22]} 31. Rb7 {[%clk 0:01:57.3]} 31...
Rxb7 {[%clk 0:01:17.8]} 32. Rxb7 {[%clk 0:01:59.2]} 32... Rb2 {[%clk 0:01:14.1]}
33. Kg2 {[%clk 0:01:58.4]} 33... Rb1 {[%clk 0:01:13.2]} 34. h4 {[%clk
0:01:58.4]} 34... b2 {[%clk 0:01:14.1]} 35. Kf3 {[%clk 0:01:59.6]} 35... Ke8
{[%clk 0:01:13.9]} 36. g4 {[%clk 0:01:53.3]} 36... Kf8 {[%clk 0:01:15.8]} 37.
Ke4 {[%clk 0:01:40.7]} 37... Kg8 {[%clk 0:01:14.3]} 38. f4 {[%clk 0:01:27.1]}
38... Rg1 {[%clk 0:01:09.5]} 39. Rxb2 {[%clk 0:01:26.1]} 39... Rxg4 {[%clk
0:01:11.4]} 40. Rh2 {[%clk 0:01:19.1]} 40... Kg7 {[%clk 0:01:08.1]} 41. Kf3
{[%clk 0:01:18.9]} 41... f5 {[%clk 0:01:06.6]} 42. e4 {[%clk 0:01:01]} 42... Kh6
{[%clk 0:01:07]} 43. e5 {[%clk 0:01:00.3]} 43... Kh5 {[%clk 0:01:05.5]} 44. Ke3
{[%clk 0:00:48.3]} 44... Rxh4 {[%clk 0:01:01.5]} 45. Ra2 {[%clk 0:00:48.8]}
45... Rh3+ {[%clk 0:00:54.4]} 46. Kd4 {[%clk 0:00:45.5]} 46... Kg4 {[%clk
0:00:56]} 47. Kc5 {[%clk 0:00:29.6]} 47... Kxf4 {[%clk 0:00:44.1]} 48. Kd6
{[%clk 0:00:29.6]} 48... Rh6 {[%clk 0:00:44.7]} 49. Ra1 {[%clk 0:00:23.2]} 49...
Ke3 {[%clk 0:00:40.9]} 50. Ra3+ {[%clk 0:00:21.9]} 50... Kf2 {[%clk 0:00:38.7]}
51. Ra2+ {[%clk 0:00:22.7]} 51... Kg3 {[%clk 0:00:39.5]} 52. Ra3+ {[%clk
0:00:20.8]} 52... Kg4 {[%clk 0:00:40.7]} 53. Ra1 {[%clk 0:00:21.6]} 53... f4
{[%clk 0:00:42.1]} 54. Rg1+ {[%clk 0:00:22.3]} 54... Kf3 {[%clk 0:00:43.7]} 55.
Rf1+ {[%clk 0:00:21.1]} 55... Ke3 {[%clk 0:00:45]} 56. Re1+ {[%clk 0:00:18.5]}
56... Kf2 {[%clk 0:00:46.1]} 57. Re4 {[%clk 0:00:20]} 57... f3 {[%clk
0:00:47.2]} 58. Rf4 {[%clk 0:00:20.9]} 58... Kg3 {[%clk 0:00:47.9]} 59. Rf6
{[%clk 0:00:22.8]} 59... Rxf6 {[%clk 0:00:44.6]} 60. exf6 {[%clk 0:00:24.7]}
60... f2 {[%clk 0:00:46.2]} 61. Kxe6 {[%clk 0:00:24.7]} 61... f1=Q {[%clk
0:00:41.8]} 62. f7 {[%clk 0:00:26.3]} 62... Qe2+ {[%clk 0:00:29.8]} 63. Kd7
{[%clk 0:00:25.5]} 63... Qd3+ {[%clk 0:00:30.6]} 64. Ke7 {[%clk 0:00:24.4]}
64... Qe4+ {[%clk 0:00:31.5]} 65. Kf6 {[%clk 0:00:23.2]} 65... Qf4+ {[%clk
0:00:22.3]} 66. Kg7 {[%clk 0:00:23.8]} 66... Qg5+ {[%clk 0:00:23.5]} 67. Kh7
{[%clk 0:00:24.7]} 67... Qf6 {[%clk 0:00:20.9]} 68. Kg8 {[%clk 0:00:25.9]} 68...
Qe6 {[%clk 0:00:22.2]} 69. Kg7 {[%clk 0:00:26.5]} 1-0

[Event "*** Titled Tuesday Blitz"]
[Site "Chess.com"]
[Date "2020.01.07"]
[Round "1"]
[White "13MiRacLe"]
[Black "ural58"]
[Result "1/2-1/2"]
[WhiteElo "2699"]
[BlackElo "2367"]
[TimeControl "180+2"]
[EndTime "13:10:28 PST"]
[Termination "Game drawn - insufficient material"]

1. e4 {[%clk 0:02:59.2]} 1... d5 {[%clk 0:02:59.8]} 2. exd5 {[%clk 0:02:59.2]}
2... Qxd5 {[%clk 0:02:58.5]} 3. Nc3 {[%clk 0:02:58.9]} 3... Qa5 {[%clk
0:02:59.1]} 4. d4 {[%clk 0:02:59.3]} 4... Nf6 {[%clk 0:02:59]} 5. Nf3 {[%clk
0:02:58]} 5... Nc6 {[%clk 0:02:59.6]} 6. Bb5 {[%clk 0:02:51.6]} 6... Ne4 {[%clk
0:03:00]} 7. a4 {[%clk 0:02:45.9]} 7... Nxc3 {[%clk 0:03:00.4]} 8. bxc3 {[%clk
0:02:45.5]} 8... a6 {[%clk 0:03:02.3]} 9. Bxc6+ {[%clk 0:02:45.9]} 9... bxc6
{[%clk 0:03:03.3]} 10. O-O {[%clk 0:02:47.3]} 10... Bg4 {[%clk 0:03:00.7]} 11.
Qd3 {[%clk 0:02:46.8]} 11... e6 {[%clk 0:02:46.9]} 12. Ne5 {[%clk 0:02:45.5]}
12... Bf5 {[%clk 0:02:46.3]} 13. Qe2 {[%clk 0:02:27.5]} 13... Bd6 {[%clk
0:02:39.7]} 14. Ba3 {[%clk 0:02:01.4]} 14... Qxc3 {[%clk 0:02:27.3]} 15. Bxd6
{[%clk 0:01:16.3]} 15... cxd6 {[%clk 0:02:27.4]} 16. Nc4 {[%clk 0:01:17.9]}
16... O-O {[%clk 0:01:36.4]} 17. Nxd6 {[%clk 0:01:17]} 17... Bg6 {[%clk
0:01:31]} 18. Rad1 {[%clk 0:00:58.1]} 18... Qxc2 {[%clk 0:01:20.9]} 19. Qxc2
{[%clk 0:00:47.8]} 19... Bxc2 {[%clk 0:01:20.2]} 20. Ra1 {[%clk 0:00:49.5]}
20... Rfd8 {[%clk 0:01:16.7]} 21. Nb7 {[%clk 0:00:48.5]} 21... Rxd4 {[%clk
0:01:13.4]} 22. a5 {[%clk 0:00:49.5]} 22... Rd5 {[%clk 0:01:10]} 23. Rfc1 {[%clk
0:00:49.2]} 23... Be4 {[%clk 0:00:54.1]} 24. f3 {[%clk 0:00:43]} 24... Bf5
{[%clk 0:00:35.2]} 25. Rxc6 {[%clk 0:00:43.6]} 25... h5 {[%clk 0:00:36]} 26. Nc5
{[%clk 0:00:41]} 26... Bd3 {[%clk 0:00:33.9]} 27. Rd1 {[%clk 0:00:26.5]} 27...
Bb5 {[%clk 0:00:34]} 28. Rxd5 {[%clk 0:00:27.1]} 28... exd5 {[%clk 0:00:29.2]}
29. Rd6 {[%clk 0:00:27.9]} 29... Bc4 {[%clk 0:00:29.6]} 30. Kf2 {[%clk
0:00:27.7]} 30... Rb8 {[%clk 0:00:30]} 31. Nxa6 {[%clk 0:00:26.4]} 31... Rb2+
{[%clk 0:00:30.8]} 32. Kg3 {[%clk 0:00:22.8]} 32... h4+ {[%clk 0:00:22.6]} 33.
Kxh4 {[%clk 0:00:19.6]} 33... Rxg2 {[%clk 0:00:23.2]} 34. Nc5 {[%clk 0:00:15.3]}
34... Rxh2+ {[%clk 0:00:23.1]} 35. Kg3 {[%clk 0:00:16.6]} 35... Ra2 {[%clk
0:00:25]} 36. a6 {[%clk 0:00:17.9]} 36... g6 {[%clk 0:00:21.5]} 37. Kf4 {[%clk
0:00:16.1]} 37... Kg7 {[%clk 0:00:22]} 38. Ke5 {[%clk 0:00:17.2]} 38... Re2+
{[%clk 0:00:20.2]} 39. Kd4 {[%clk 0:00:17.9]} 39... Rd2+ {[%clk 0:00:21.2]} 40.
Kc3 {[%clk 0:00:19.4]} 40... Ra2 {[%clk 0:00:22.2]} 41. f4 {[%clk 0:00:20.5]}
41... Ra5 {[%clk 0:00:19.7]} 42. Kd4 {[%clk 0:00:19.6]} 42... Kh6 {[%clk
0:00:19.4]} 43. Rf6 {[%clk 0:00:19.3]} 43... Kg7 {[%clk 0:00:19.5]} 44. Rc6
{[%clk 0:00:20.1]} 44... Ra2 {[%clk 0:00:21.4]} 45. Ke5 {[%clk 0:00:17.5]} 45...
f6+ {[%clk 0:00:19.7]} 46. Kd6 {[%clk 0:00:12.8]} 46... g5 {[%clk 0:00:20.9]}
47. f5 {[%clk 0:00:09]} 47... g4 {[%clk 0:00:21.5]} 48. Ne6+ {[%clk 0:00:09.9]}
48... Kh6 {[%clk 0:00:21.5]} 49. Rc8 {[%clk 0:00:09.1]} 49... Rxa6+ {[%clk
0:00:22.4]} 50. Kc5 {[%clk 0:00:09.8]} 50... Ra7 {[%clk 0:00:22.6]} 51. Kd4
{[%clk 0:00:08.7]} 51... g3 {[%clk 0:00:21.7]} 52. Rg8 {[%clk 0:00:09.8]} 52...
Kh7 {[%clk 0:00:17.8]} 53. Rxg3 {[%clk 0:00:09.3]} 53... Ra1 {[%clk 0:00:19.6]}
54. Rg7+ {[%clk 0:00:10.4]} 54... Kh8 {[%clk 0:00:20]} 55. Rf7 {[%clk 0:00:12]}
55... Rd1+ {[%clk 0:00:21.1]} 56. Kc5 {[%clk 0:00:12.4]} 56... Ba2 {[%clk
0:00:22]} 57. Rxf6 {[%clk 0:00:13.3]} 57... d4 {[%clk 0:00:23.9]} 58. Rh6+
{[%clk 0:00:13.9]} 58... Kg8 {[%clk 0:00:24.3]} 59. Kd6 {[%clk 0:00:14.8]} 59...
Kf7 {[%clk 0:00:21.7]} 60. Rh7+ {[%clk 0:00:15.6]} 60... Kf6 {[%clk 0:00:22.4]}
61. Rh4 {[%clk 0:00:09.4]} 61... Kxf5 {[%clk 0:00:19.5]} 62. Rxd4 {[%clk
0:00:07.5]} 62... Rxd4+ {[%clk 0:00:17.6]} 63. Nxd4+ {[%clk 0:00:09.4]} 1/2-1/2

[Event "*** Titled Tuesday Blitz"]
[Site "Chess.com"]
[Date "2020.01.07"]
[Round "1"]
[White "BjarkeSahl"]
[Black "vovachesss"]
[Result "0-1"]
[WhiteElo "2142"]
[BlackElo "2556"]
[TimeControl "180+2"]
[EndTime "13:10:28 PST"]
[Termination "vovachesss won by resignation"]

1. d4 {[%clk 0:03:00.7]} 1... Nf6 {[%clk 0:02:45.2]} 2. Nc3 {[%clk 0:03:00]}
2... d5 {[%clk 0:02:38]} 3. Bg5 {[%clk 0:03:00.2]} 3... Nbd7 {[%clk 0:02:38.6]}
4. e3 {[%clk 0:03:00.8]} 4... c6 {[%clk 0:02:39.2]} 5. Bd3 {[%clk 0:03:01]} 5...
e5 {[%clk 0:02:40]} 6. Nh3 {[%clk 0:02:52.3]} 6... Bd6 {[%clk 0:02:39.2]} 7. O-O
{[%clk 0:02:48.6]} 7... e4 {[%clk 0:02:31.3]} 8. Be2 {[%clk 0:02:47.6]} 8... h6
{[%clk 0:02:30.2]} 9. Bf4 {[%clk 0:02:44.3]} 9... Nf8 {[%clk 0:02:21.7]} 10.
Bxd6 {[%clk 0:02:36.4]} 10... Qxd6 {[%clk 0:02:22.2]} 11. Nf4 {[%clk 0:02:38]}
11... Ne6 {[%clk 0:01:56.2]} 12. Nh5 {[%clk 0:02:26.3]} 12... Nxh5 {[%clk
0:01:56.6]} 13. Bxh5 {[%clk 0:02:27.3]} 13... g6 {[%clk 0:01:56.3]} 14. Be2
{[%clk 0:02:28]} 14... h5 {[%clk 0:01:55.2]} 15. f3 {[%clk 0:02:26.5]} 15...
exf3 {[%clk 0:01:50.1]} 16. Bxf3 {[%clk 0:02:18]} 16... f5 {[%clk 0:01:51]} 17.
a3 {[%clk 0:02:10.1]} 17... h4 {[%clk 0:01:41.5]} 18. Qd2 {[%clk 0:01:59.5]}
18... Bd7 {[%clk 0:01:30.4]} 19. Ne2 {[%clk 0:01:59]} 19... g5 {[%clk
0:01:28.1]} 20. Nc1 {[%clk 0:01:59.5]} 20... g4 {[%clk 0:01:26.8]} 21. Be2
{[%clk 0:02:00.3]} 21... Ng5 {[%clk 0:01:28.1]} 22. Nd3 {[%clk 0:01:59.3]} 22...
Ne4 {[%clk 0:01:27]} 23. Qb4 {[%clk 0:01:54.8]} 23... Qc7 {[%clk 0:01:06.8]} 24.
Nf4 {[%clk 0:01:54.7]} 24... O-O-O {[%clk 0:01:03.3]} 25. Bd3 {[%clk 0:01:55.1]}
25... Rde8 {[%clk 0:01:03.8]} 26. Bxe4 {[%clk 0:01:43.9]} 26... Rxe4 {[%clk
0:01:04]} 27. Rae1 {[%clk 0:01:42.1]} 27... Rhe8 {[%clk 0:01:04.4]} 28. Qd2
{[%clk 0:01:41.5]} 28... Kb8 {[%clk 0:00:54]} 29. Nd3 {[%clk 0:01:40.4]} 29...
Bc8 {[%clk 0:00:45.5]} 30. Rf4 {[%clk 0:01:41.1]} 30... Rxf4 {[%clk 0:00:36.8]}
31. exf4 {[%clk 0:01:40]} 31... Re4 {[%clk 0:00:37.7]} 32. Ne5 {[%clk
0:01:33.2]} 32... Qb6 {[%clk 0:00:37]} 33. Rxe4 {[%clk 0:01:29.4]} 33... dxe4
{[%clk 0:00:35.7]} 34. c4 {[%clk 0:01:14.5]} 34... Qb3 {[%clk 0:00:31.3]} 35. d5
{[%clk 0:00:48.8]} 35... cxd5 {[%clk 0:00:23]} 36. cxd5 {[%clk 0:00:41.6]} 36...
e3 {[%clk 0:00:23.6]} 37. Qe1 {[%clk 0:00:39.8]} 37... h3 {[%clk 0:00:18.6]} 38.
gxh3 {[%clk 0:00:39.6]} 38... gxh3 {[%clk 0:00:19.8]} 39. d6 {[%clk 0:00:38.1]}
39... Qd5 {[%clk 0:00:20.8]} 40. Qe2 {[%clk 0:00:35.6]} 40... Qe4 {[%clk
0:00:07.7]} 41. Qf3 {[%clk 0:00:31]} 41... Qb1+ {[%clk 0:00:07.6]} 42. Qf1
{[%clk 0:00:32.2]} 42... Qe4 {[%clk 0:00:06.3]} 43. Qf3 {[%clk 0:00:31.7]} 43...
Qb1+ {[%clk 0:00:05.8]} 44. Qf1 {[%clk 0:00:32.8]} 44... Qxb2 {[%clk 0:00:07.4]}
45. d7 {[%clk 0:00:31.6]} 45... Bxd7 {[%clk 0:00:08.8]} 46. Nxd7+ {[%clk
0:00:32.8]} 46... Kc7 {[%clk 0:00:10.3]} 47. Ne5 {[%clk 0:00:33.5]} 47... b5
{[%clk 0:00:10.4]} 48. Nf3 {[%clk 0:00:33.9]} 48... a6 {[%clk 0:00:09.8]} 49.
Qxh3 {[%clk 0:00:30.5]} 49... Qxa3 {[%clk 0:00:08.7]} 50. Qh7+ {[%clk
0:00:31.1]} 50... Kb6 {[%clk 0:00:09.7]} 51. Qg6+ {[%clk 0:00:31.9]} 51... Ka5
{[%clk 0:00:11.1]} 52. Qxf5 {[%clk 0:00:32.7]} 52... Qc1+ {[%clk 0:00:11]} 53.
Kg2 {[%clk 0:00:33.9]} 53... Qb2+ {[%clk 0:00:11.5]} 54. Kg3 {[%clk 0:00:34.3]}
54... Qf2+ {[%clk 0:00:12.3]} 55. Kg4 {[%clk 0:00:34.6]} 55... Qg2+ {[%clk
0:00:13.4]} 56. Kh5 {[%clk 0:00:34.1]} 56... Qxf3+ {[%clk 0:00:14.8]} 57. Kg6
{[%clk 0:00:35.7]} 57... e2 {[%clk 0:00:15.7]} 58. Qe5 {[%clk 0:00:35]} 58...
Qg4+ {[%clk 0:00:14.1]} 59. Kf7 {[%clk 0:00:35.2]} 59... Qd7+ {[%clk 0:00:13.9]}
60. Kg6 {[%clk 0:00:36.4]} 60... Qd2 {[%clk 0:00:14.7]} 61. Qa1+ {[%clk
0:00:35.3]} 61... Kb6 {[%clk 0:00:13.6]} 62. Qf6+ {[%clk 0:00:35.6]} 62... Kc5
{[%clk 0:00:15]} 63. Qe5+ {[%clk 0:00:36.5]} 63... Kc4 {[%clk 0:00:15.4]} 64.
Qe6+ {[%clk 0:00:36.7]} 64... Kb4 {[%clk 0:00:15]} 65. Qe7+ {[%clk 0:00:37.2]}
65... Ka4 {[%clk 0:00:15.2]} 66. Qe4+ {[%clk 0:00:37.4]} 66... b4 {[%clk
0:00:15.8]} 67. Qe8+ {[%clk 0:00:39]} 67... Ka3 {[%clk 0:00:16.7]} 0-1

[Event "*** Titled Tuesday Blitz"]
[Site "Chess.com"]
[Date "2020.01.07"]
[Round "1"]
[White "vugarrasulov"]
[Black "Philosopherrr"]
[Result "1/2-1/2"]
[WhiteElo "2854"]
[BlackElo "2451"]
[TimeControl "180+2"]
[EndTime "13:10:31 PST"]
[Termination "Game drawn by repetition"]

1. e4 {[%clk 0:03:01.7]} 1... e5 {[%clk 0:03:01]} 2. Nf3 {[%clk 0:03:01.8]} 2...
Nc6 {[%clk 0:03:02.1]} 3. Bb5 {[%clk 0:03:03.5]} 3... a6 {[%clk 0:03:03.2]} 4.
Ba4 {[%clk 0:03:05]} 4... Nf6 {[%clk 0:03:04.7]} 5. O-O {[%clk 0:03:06.3]} 5...
Be7 {[%clk 0:03:06.1]} 6. Re1 {[%clk 0:03:06.9]} 6... b5 {[%clk 0:03:06.3]} 7.
Bb3 {[%clk 0:03:08.6]} 7... d6 {[%clk 0:03:07.5]} 8. c3 {[%clk 0:03:09.7]} 8...
O-O {[%clk 0:03:09]} 9. h3 {[%clk 0:03:11]} 9... Bb7 {[%clk 0:03:10.4]} 10. d4
{[%clk 0:03:12]} 10... Re8 {[%clk 0:03:12]} 11. Nbd2 {[%clk 0:03:12.1]} 11...
exd4 {[%clk 0:03:13.5]} 12. cxd4 {[%clk 0:03:13.1]} 12... Nd7 {[%clk 0:03:14.9]}
13. Nf1 {[%clk 0:03:07]} 13... Na5 {[%clk 0:03:15.8]} 14. Bc2 {[%clk 0:03:07.1]}
14... Bf6 {[%clk 0:03:17.2]} 15. Ng3 {[%clk 0:03:06.8]} 15... g6 {[%clk
0:03:18.7]} 16. b3 {[%clk 0:02:55.5]} 16... c5 {[%clk 0:03:19.2]} 17. Rb1 {[%clk
0:02:55.3]} 17... Nc6 {[%clk 0:03:19.4]} 18. Bb2 {[%clk 0:02:48]} 18... Nb4
{[%clk 0:03:19.5]} 19. d5 {[%clk 0:02:45.8]} 19... Nxa2 {[%clk 0:03:03.8]} 20.
Qd2 {[%clk 0:02:43.9]} 20... b4 {[%clk 0:03:02.3]} 21. Ne2 {[%clk 0:02:40.3]}
21... a5 {[%clk 0:02:51]} 22. Bd3 {[%clk 0:02:40.2]} 22... Nc3 {[%clk
0:02:02.2]} 23. Nxc3 {[%clk 0:02:39.8]} 23... bxc3 {[%clk 0:02:03.7]} 24. Bxc3
{[%clk 0:02:41.7]} 24... Bxc3 {[%clk 0:01:58.6]} 25. Qxc3 {[%clk 0:02:42.6]}
25... Qf6 {[%clk 0:01:58.2]} 26. Qd2 {[%clk 0:02:36.1]} 26... Ba6 {[%clk
0:01:55.9]} 27. Bxa6 {[%clk 0:02:28.2]} 27... Rxa6 {[%clk 0:01:56.6]} 28. Ra1
{[%clk 0:02:30.1]} 28... Rxe4 {[%clk 0:01:26.1]} 29. Rxe4 {[%clk 0:02:14.9]}
29... Qxa1+ {[%clk 0:01:25.9]} 30. Re1 {[%clk 0:02:16.8]} 30... Qf6 {[%clk
0:01:26.2]} 31. Re8+ {[%clk 0:02:16]} 31... Kg7 {[%clk 0:01:26.6]} 32. h4 {[%clk
0:02:07.9]} 32... h6 {[%clk 0:01:18.7]} 33. Qe1 {[%clk 0:02:02.7]} 33... a4
{[%clk 0:01:13.8]} 34. Rc8 {[%clk 0:01:47.1]} 34... Nb6 {[%clk 0:00:59.2]} 35.
Rb8 {[%clk 0:01:44.2]} 35... Nd7 {[%clk 0:00:44.6]} 36. Rc8 {[%clk 0:01:44.9]}
36... Ne5 {[%clk 0:00:43.2]} 37. Nxe5 {[%clk 0:01:43.1]} 37... dxe5 {[%clk
0:00:44.4]} 38. bxa4 {[%clk 0:01:39.5]} 38... Rxa4 {[%clk 0:00:45.4]} 39. Rc6
{[%clk 0:01:36.6]} 39... Qf4 {[%clk 0:00:37.8]} 40. Rxc5 {[%clk 0:01:23.4]}
40... Qd4 {[%clk 0:00:37.5]} 41. Rc1 {[%clk 0:01:07.5]} 41... Qxd5 {[%clk
0:00:38.6]} 42. g3 {[%clk 0:01:08.8]} 42... Rd4 {[%clk 0:00:38.2]} 43. Kh2
{[%clk 0:01:09.7]} 43... Rd2 {[%clk 0:00:38.6]} 44. Kg1 {[%clk 0:01:08.6]} 44...
Qd4 {[%clk 0:00:38.8]} 45. Rb1 {[%clk 0:01:06.7]} 45... h5 {[%clk 0:00:39.6]}
46. Rc1 {[%clk 0:01:06.5]} 46... e4 {[%clk 0:00:39.5]} 47. Rb1 {[%clk
0:01:04.8]} 47... Qd3 {[%clk 0:00:40.5]} 48. Rc1 {[%clk 0:01:02.2]} 48... Re2
{[%clk 0:00:41.6]} 49. Qb4 {[%clk 0:00:42.4]} 49... Kh7 {[%clk 0:00:34.4]} 50.
Qc3 {[%clk 0:00:37.9]} 50... Qd7 {[%clk 0:00:18.3]} 51. Qe5 {[%clk 0:00:34.8]}
51... Qa7 {[%clk 0:00:16.1]} 52. Qf4 {[%clk 0:00:30.2]} 52... e3 {[%clk
0:00:16.3]} 53. Rc7 {[%clk 0:00:24.2]} 53... exf2+ {[%clk 0:00:16.7]} 54. Kg2
{[%clk 0:00:25.7]} 54... f1=Q+ {[%clk 0:00:17.7]} 55. Kxf1 {[%clk 0:00:27]}
55... Rf2+ {[%clk 0:00:07.1]} 56. Qxf2 {[%clk 0:00:21.2]} 56... Qxc7 {[%clk
0:00:07.4]} 57. Kg2 {[%clk 0:00:23.1]} 57... Qc6+ {[%clk 0:00:08.4]} 58. Kh2
{[%clk 0:00:24.6]} 58... Qe6 {[%clk 0:00:10.3]} 59. Qf4 {[%clk 0:00:25.5]} 59...
Qe2+ {[%clk 0:00:11.2]} 60. Kg1 {[%clk 0:00:26.6]} 60... Qd1+ {[%clk 0:00:11.7]}
61. Kg2 {[%clk 0:00:27.5]} 61... Qd7 {[%clk 0:00:12.8]} 62. Kh2 {[%clk
0:00:28.6]} 62... Qe6 {[%clk 0:00:13.7]} 63. Kg1 {[%clk 0:00:28.8]} 63... f6
{[%clk 0:00:15.1]} 64. Qc7+ {[%clk 0:00:29.8]} 64... Kh6 {[%clk 0:00:15.8]} 65.
Qd8 {[%clk 0:00:31.2]} 65... Qe3+ {[%clk 0:00:16]} 66. Kg2 {[%clk 0:00:32.7]}
66... Qe2+ {[%clk 0:00:17.5]} 67. Kg1 {[%clk 0:00:34.3]} 67... Qe1+ {[%clk
0:00:15.6]} 68. Kg2 {[%clk 0:00:35.7]} 68... Qe4+ {[%clk 0:00:16.8]} 69. Kg1
{[%clk 0:00:35.9]} 69... Qb1+ {[%clk 0:00:15.7]} 70. Kh2 {[%clk 0:00:35.1]}
70... Qa2+ {[%clk 0:00:16.9]} 71. Kg1 {[%clk 0:00:35.8]} 71... Qb1+ {[%clk
0:00:17.9]} 72. Kh2 {[%clk 0:00:37.1]} 72... Qc2+ {[%clk 0:00:17.8]} 73. Kg1
{[%clk 0:00:38.3]} 73... Qb1+ {[%clk 0:00:17.2]} 1/2-1/2